bitfinex/quotes_BTCUSD_20250513
["timestamp","ask_amount","ask_price","bid_price","bid_amount"]
[1747136476727,0.005,103730.0,103720.0,4.70993791]
[1747136476936,0.005,103730.0,103720.0,4.87108679]
[1747136477387,0.005,103730.0,103720.0,4.70993791]
[1747136477629,0.005,103730.0,103720.0,3.77322791]
[1747136479463,0.005,103730.0,103720.0,3.93437679]
[1747136480364,0.005,103730.0,103720.0,3.9479837]
[1747136480774,0.005,103730.0,103720.0,3.78683482]
[1747136482342,0.005,103730.0,103720.0,4.19913482]
[1747136484094,0.005,103730.0,103720.0,4.27160655]
[1747136484308,0.005,103730.0,103720.0,4.28178772]
[1747136484517,0.005,103730.0,103720.0,4.27160655]
[1747136485988,0.005,103730.0,103720.0,4.18541795]
[1747136486189,0.005,103730.0,103720.0,3.78552042]
[1747136486605,0.005,103730.0,103720.0,2.40235442]
[1747136487026,0.005,103730.0,103720.0,3.76463342]
[1747136487229,0.005,103730.0,103720.0,4.06760242]
[1747136487677,0.005,103730.0,103720.0,3.99557842]
[1747136488316,0.005,103730.0,103720.0,3.93860669]
[1747136489311,0.005,103730.0,103720.0,3.92310669]
[1747136492297,0.005,103730.0,103720.0,4.08425557]
[1747136492738,0.005,103730.0,103720.0,3.92310669]
[1747136493738,0.005,103730.0,103720.0,4.08425557]
[1747136497222,0.005,103730.0,103720.0,2.87573157]
[1747136497439,0.005,103730.0,103720.0,5.40631057]
[1747136497863,0.005,103730.0,103720.0,5.38099057]
[1747136498048,0.005,103730.0,103720.0,5.4534623]
[1747136498690,0.005,103730.0,103720.0,5.4002523]
[1747136499686,0.005,103730.0,103720.0,5.3802183]
[1747136499865,0.005,103730.0,103720.0,5.3442183]
[1747136500071,0.005,103730.0,103720.0,5.1098673]
[1747136500327,0.005,103730.0,103720.0,5.0942673]
[1747136501426,0.005,103730.0,103720.0,5.0726013]
[1747136502266,0.005,103730.0,103720.0,5.0487263]
[1747136503664,0.005,103730.0,103720.0,4.9278533]
[1747136503871,0.005,103730.0,103720.0,4.8759293]
[1747136505176,0.005,103730.0,103720.0,4.9621179]
[1747136507871,0.005,103730.0,103720.0,3.0343919]
[1747136508234,0.005,103730.0,103720.0,5.2025949]
[1747136508582,0.005,103730.0,103720.0,4.4871529]
[1747136508783,0.005,103730.0,103720.0,4.41468117]
[1747136517771,0.00382018,103730.0,103720.0,4.41468117]
[1747136518390,0.00145731,103730.0,103720.0,4.41468117]
[1747136518633,0.00145731,103730.0,103720.0,2.94592017]
[1747136518830,0.00145731,103730.0,103720.0,4.17853917]
[1747136519045,0.02953147,103740.0,103730.0,0.55856697]
[1747136519344,0.02953147,103740.0,103730.0,1.71332137]
[1747136519544,0.02833936,103740.0,103730.0,1.40534957]
[1747136519785,0.02833936,103740.0,103730.0,2.12764733]
[1747136519991,0.02833936,103740.0,103730.0,2.08510033]
[1747136520410,0.02933936,103740.0,103730.0,2.08510033]
[1747136521273,0.001,103740.0,103730.0,2.08510033]
[1747136521487,0.0163,103740.0,103730.0,2.08510033]
[1747136522578,0.0321,103740.0,103730.0,2.15773285]
[1747136532325,0.0321,103740.0,103730.0,1.03773709]
[1747136532538,0.0321,103740.0,103730.0,1.89857985]
[1747136533191,0.0321,103740.0,103730.0,2.11545985]
[1747136537702,0.0321,103740.0,103730.0,2.07199889]
[1747136538601,0.0321,103740.0,103730.0,1.562374]
[1747136538731,0.0321,103740.0,103730.0,3.694632]
[1747136539454,0.0321,103740.0,103730.0,3.593032]
[1747136539671,0.001,103740.0,103730.0,3.60757285]
[1747136540456,0.001,103740.0,103730.0,3.53494033]
[1747136542040,0.001,103740.0,103730.0,3.95134033]
[1747136543648,0.001,103740.0,103730.0,4.32404033]
[1747136543918,0.001,103740.0,103730.0,4.29134033]
[1747136545862,0.001,103740.0,103730.0,4.30684033]
[1747136546830,0.001,103740.0,103730.0,4.32274033]
[1747136547295,0.001,103740.0,103730.0,4.30684033]
[1747136548380,0.001,103740.0,103730.0,4.71914033]
[1747136548579,0.001,103740.0,103730.0,4.73494033]
[1747136549192,0.001,103740.0,103730.0,2.68848233]
[1747136549553,0.001,103740.0,103730.0,5.68848233]
[1747136550578,0.001,103740.0,103730.0,5.70398233]
[1747136550783,0.002,103750.0,103740.0,0.71969448]
[1747136550994,0.002,103750.0,103740.0,2.29540088]
[1747136551201,0.002,103750.0,103740.0,2.32039336]
[1747136551419,0.002,103750.0,103740.0,2.71021219]
[1747136552598,0.0346,103750.0,103740.0,2.54906331]
[1747136553783,0.0346,103750.0,103740.0,2.71021219]
[1747136553988,0.0346,103750.0,103740.0,2.78282681]
[1747136555698,0.0346,103750.0,103740.0,2.62167793]
[1747136555898,0.0346,103750.0,103740.0,2.77197581]
[1747136558386,0.002,103750.0,103740.0,2.77197581]
[1747136560110,0.002,103750.0,103740.0,1.30442981]
[1747136560322,0.002,103750.0,103740.0,3.30348681]
[1747136561255,0.0184423,103770.0,103760.0,0.23959335]
[1747136561471,0.01450236,103790.0,103780.0,0.23616237]
[1747136561676,0.01450236,103790.0,103780.0,2.76881265]
[1747136561887,0.01450236,103790.0,103780.0,2.36845171]
[1747136562104,0.01450236,103790.0,103780.0,2.49364459]
[1747136562321,0.03040236,103790.0,103780.0,2.49364459]
[1747136562526,0.03049588,103790.0,103780.0,2.50511104]
[1747136562733,0.04549588,103790.0,103780.0,2.28895104]
[1747136562936,0.04549588,103790.0,103780.0,2.66625992]
[1747136563181,0.04549588,103790.0,103780.0,2.50511104]
[1747136563395,0.19294179,103800.0,103790.0,0.22650684]
[1747136563597,0.16204179,103800.0,103790.0,2.79991906]
[1747136563747,0.16204179,103800.0,103790.0,2.62246307]
[1747136564161,0.16204179,103800.0,103790.0,2.30016531]
[1747136564362,0.16204179,103800.0,103790.0,2.62246307]
[1747136565172,0.16204179,103800.0,103790.0,2.65446307]
[1747136565410,0.01831,103830.0,103820.0,0.21190455]
[1747136565411,0.19262378,103830.0,103820.0,0.21190455]
[1747136565576,0.18776922,103830.0,103820.0,0.96668231]
[1747136565795,0.18776922,103830.0,103820.0,0.81779824]
[1747136566340,0.207031,103830.0,103820.0,0.81779824]
[1747136566550,0.22166043,103830.0,103820.0,0.98857852]
[1747136566753,0.23129155,103830.0,103820.0,0.97894712]
[1747136567010,0.22166089,103830.0,103820.0,0.80816665]
[1747136567206,0.22166089,103830.0,103820.0,0.8274301]
[1747136567430,0.24427795,103830.0,103820.0,0.44470481]
[1747136567607,0.21603014,103830.0,103820.0,0.65660982]
[1747136567809,0.21603014,103830.0,103820.0,0.82739047]
[1747136568254,0.21603014,103830.0,103820.0,0.83702215]
[1747136568449,0.24763014,103830.0,103820.0,0.83702215]
[1747136568620,0.24763014,103830.0,103820.0,0.99817103]
[1747136568828,0.24763014,103830.0,103820.0,0.67587327]
[1747136569018,0.24763014,103830.0,103820.0,0.83702215]
[1747136569663,0.24763014,103830.0,103820.0,0.84665364]
[1747136569871,0.03574544,103830.0,103820.0,1.00780187]
[1747136570509,0.03574544,103830.0,103820.0,1.34780187]
[1747136570729,0.01974544,103830.0,103820.0,1.34780187]
[1747136571171,0.00414544,103830.0,103820.0,1.01267127]
[1747136571376,0.00014544,103830.0,103820.0,1.86119127]
[1747136571782,0.00014544,103830.0,103820.0,2.26119127]
[1747136573460,0.00014544,103830.0,103820.0,2.29289127]
[1747136573461,0.00214544,103830.0,103820.0,2.29289127]
[1747136573592,0.00214544,103830.0,103820.0,2.26119127]
[1747136573796,0.00014544,103830.0,103820.0,2.26119127]
[1747136574201,0.00214544,103830.0,103820.0,2.26119127]
[1747136574775,0.03174544,103830.0,103820.0,1.72301351]
[1747136575001,0.04137582,103830.0,103820.0,1.84146411]
[1747136575196,0.03174544,103830.0,103820.0,2.00261299]
[1747136575910,0.00014544,103830.0,103820.0,2.16376187]
[1747136576058,0.00014544,103830.0,103820.0,2.26107127]
[1747136576258,0.00014544,103830.0,103820.0,2.27617127]
[1747136577297,0.03284544,103830.0,103820.0,1.50661351]
[1747136577505,0.04247582,103830.0,103820.0,2.00249299]
[1747136578063,0.01644544,103830.0,103820.0,2.16364187]
[1747136578284,0.00014544,103830.0,103820.0,2.16364187]
[1747136579339,0.00014544,103830.0,103820.0,2.0861785]
[1747136580572,0.00014544,103830.0,103820.0,1.6541385]
[1747136580775,0.00014544,103830.0,103820.0,2.0852985]
[1747136580980,0.00014544,103830.0,103820.0,2.1163985]
[1747136581194,0.00014544,103830.0,103820.0,2.1009985]
[1747136581398,0.00014544,103830.0,103820.0,2.0852985]
[1747136583296,0.00014544,103830.0,103820.0,2.1826079]
[1747136583464,0.00014544,103830.0,103820.0,2.1984079]
[1747136583704,0.05550426,103840.0,103830.0,0.2215148]
[1747136583871,0.05598897,103840.0,103830.0,0.46634919]
[1747136584031,0.05598897,103840.0,103830.0,0.47920469]
[1747136584243,0.05598897,103840.0,103830.0,0.87920469]
[1747136584651,0.05598888,103840.0,103830.0,0.87920469]
[1747136584836,0.05598897,103840.0,103830.0,0.6343703]
[1747136585052,0.04635915,103840.0,103830.0,0.87920469]
[1747136585241,0.05598879,103840.0,103830.0,0.87920469]
[1747136585443,0.0367296,103840.0,103830.0,0.87920469]
[1747136585650,0.00048471,103840.0,103830.0,0.87920469]
[1747136585867,0.01011416,103840.0,103830.0,0.87920469]
[1747136586074,0.01211416,103840.0,103830.0,0.87920469]
[1747136586339,0.02791416,103840.0,103830.0,0.87920469]
[1747136586947,0.01211416,103840.0,103830.0,0.87920469]
[1747136587359,0.02174371,103840.0,103830.0,0.87920469]
[1747136587556,0.01211416,103840.0,103830.0,0.87920469]
[1747136587786,0.02174371,103840.0,103830.0,0.87920469]
[1747136588607,0.0217438,103840.0,103830.0,0.87920469]
[1747136588926,0.0217438,103840.0,103830.0,0.6343703]
[1747136589095,0.0217438,103840.0,103830.0,0.87920469]
[1747136589684,0.01211416,103840.0,103830.0,0.87920469]
[1747136589918,0.0217438,103840.0,103830.0,0.87920469]
[1747136590320,0.01211416,103840.0,103830.0,0.87920469]
[1747136590673,0.02174371,103840.0,103830.0,0.87920469]
[1747136591277,0.01211416,103840.0,103830.0,0.87920469]
[1747136591452,0.0217438,103840.0,103830.0,0.87920469]
[1747136591654,0.0616739,103840.0,103830.0,1.0652503]
[1747136591839,0.06167381,103840.0,103830.0,1.0652503]
[1747136592042,0.07130382,103840.0,103830.0,1.0652503]
[1747136592243,0.27291103,103840.0,103830.0,1.06525067]
[1747136592451,0.28254123,103840.0,103830.0,1.07488133]
[1747136592769,0.28254123,103840.0,103830.0,1.0845119]
[1747136592971,0.2729115,103840.0,103830.0,1.07488133]
[1747136593191,0.2729115,103840.0,103830.0,1.0845119]
[1747136593432,0.0307472,103840.0,103830.0,1.08451134]
[1747136594287,0.2637814,103840.0,103830.0,1.08451134]
[1747136594499,0.0711774,103840.0,103830.0,1.08451134]
[1747136594717,0.0615472,103840.0,103830.0,1.08451134]
[1747136595494,0.0711773,103840.0,103830.0,1.08451134]
[1747136595900,0.0711773,103840.0,103830.0,0.65363134]
[1747136596099,0.0711773,103840.0,103830.0,1.08435134]
[1747136596769,0.0615472,103840.0,103830.0,1.08435134]
[1747136597994,0.0457472,103840.0,103830.0,1.08435134]
[1747136598382,0.04574683,103840.0,103830.0,1.32918573]
[1747136598625,0.03074683,103840.0,103830.0,1.32918573]
[1747136598857,0.04037684,103840.0,103830.0,1.32918573]
[1747136599346,0.04037591,103840.0,103830.0,1.32918573]
[1747136599582,0.01148727,103840.0,103830.0,1.32918573]
[1747136599813,0.02111672,103840.0,103830.0,1.36000573]
[1747136600238,0.02111672,103840.0,103830.0,1.32910573]
[1747136601367,0.02111672,103840.0,103830.0,1.2449349]
[1747136601580,0.01148727,103840.0,103830.0,1.2766349]
[1747136603904,0.05171672,103840.0,103830.0,0.46923134]
[1747136604314,0.05171672,103840.0,103830.0,0.6298949]
[1747136604480,0.04614636,103840.0,103830.0,0.46923134]
[1747136604665,0.04614636,103840.0,103830.0,0.6298949]
[1747136604885,0.0747379,103840.0,103830.0,0.46923134]
[1747136605092,0.07473781,103840.0,103830.0,0.86923134]
[1747136605518,0.04614627,103840.0,103830.0,0.86923134]
[1747136607450,0.03651672,103840.0,103830.0,0.86923134]
[1747136607635,0.04614627,103840.0,103830.0,1.0298949]
[1747136607787,0.04614627,103840.0,103830.0,0.86923134]
[1747136608014,0.06114627,103840.0,103830.0,0.86923134]
[1747136608211,0.09835456,103840.0,103830.0,0.86923134]
[1747136608571,0.30058848,103840.0,103830.0,0.83070889]
[1747136608792,0.28132985,103840.0,103830.0,0.2276155]
[1747136608958,0.28132985,103840.0,103830.0,0.43949983]
[1747136609329,0.2537512,103840.0,103830.0,0.43949983]
[1747136611041,0.2537512,103840.0,103830.0,0.44913049]
[1747136611273,0.2537512,103840.0,103830.0,0.43950002]
[1747136611485,0.2537512,103840.0,103830.0,0.83949983]
[1747136611932,0.2537512,103840.0,103830.0,0.21510908]
[1747136612140,0.40241036,103840.0,103830.0,0.0128555]
[1747136612389,0.56307392,103840.0,103830.0,0.0128555]
[1747136612769,0.40241036,103840.0,103830.0,0.0128555]
[1747136613214,0.56307392,103840.0,103830.0,0.0128555]
[1747136613558,0.40241036,103840.0,103830.0,0.0128555]
[1747136613767,0.40215516,103840.0,103830.0,0.0128555]
[1747136614173,0.34117548,103840.0,103830.0,0.0128555]
[1747136615469,0.58610184,103840.0,103830.0,0.0128555]
[1747136616402,0.34117548,103840.0,103830.0,0.0128555]
[1747136616610,0.58610184,103840.0,103830.0,0.0128555]
[1747136617227,0.34117548,103840.0,103830.0,0.0128555]
[1747136617428,0.35779548,103840.0,103830.0,0.0128555]
[1747136617684,0.34117548,103840.0,103830.0,0.0128555]
[1747136623134,0.34117548,103840.0,103820.0,0.19264005]
[1747136623135,0.23435358,103830.0,103820.0,0.19264005]
[1747136623334,0.33166298,103830.0,103820.0,0.2022721]
[1747136623565,0.34129382,103830.0,103820.0,0.21190406]
[1747136624390,0.34129382,103830.0,103820.0,0.22153592]
[1747136624995,0.03536466,103810.0,103800.0,0.42870464]
[1747136625246,0.01850836,103810.0,103800.0,1.06388864]
[1747136625387,0.05337181,103820.0,103810.0,0.22155749]
[1747136625591,0.16031326,103820.0,103810.0,0.22155767]
[1747136625791,0.35295436,103820.0,103810.0,0.22155767]
[1747136626004,0.41044496,103820.0,103810.0,0.21192516]
[1747136626202,0.41044496,103820.0,103810.0,0.22155758]
[1747136626466,0.41044496,103820.0,103810.0,0.21192516]
[1747136626622,0.41044496,103820.0,103810.0,0.21292516]
[1747136626856,0.41044496,103820.0,103810.0,0.22617811]
[1747136627010,0.41044496,103820.0,103810.0,0.23581062]
[1747136627608,0.21780386,103820.0,103810.0,0.24644304]
[1747136627836,0.1579049,103820.0,103810.0,0.24644304]
[1747136628058,0.15068115,103820.0,103810.0,0.24644304]
[1747136628269,0.16031311,103820.0,103810.0,0.24644304]
[1747136628469,0.1506806,103820.0,103810.0,0.24644314]
[1747136628909,0.14104901,103820.0,103810.0,0.24644314]
[1747136629138,0.16031209,103820.0,103810.0,0.24644314]
[1747136629319,0.16994395,103820.0,103810.0,0.24644323]
[1747136629455,0.16994395,103820.0,103810.0,0.23681081]
[1747136629665,0.1984325,103820.0,103810.0,0.23681081]
[1747136629927,0.21528811,103820.0,103810.0,0.23681081]
[1747136630102,0.21528811,103820.0,103810.0,0.2271782]
[1747136630308,0.20565606,103820.0,103810.0,0.23681071]
[1747136630508,0.1960242,103820.0,103810.0,0.24644313]
[1747136630768,0.20806427,103820.0,103810.0,0.24644313]
[1747136630930,0.20565597,103820.0,103810.0,0.23681071]
[1747136631116,0.20565597,103820.0,103810.0,0.23681081]
[1747136631522,0.1960242,103820.0,103810.0,0.2175454]
[1747136631737,0.19602411,103820.0,103810.0,0.22717801]
[1747136631951,0.20565588,103820.0,103810.0,0.23681034]
[1747136632147,0.20565588,103820.0,103810.0,0.23681052]
[1747136632385,0.19602411,103820.0,103810.0,0.23681034]
[1747136632741,0.16753538,103820.0,103810.0,0.22717801]
[1747136632954,0.17957555,103820.0,103810.0,0.22717801]
[1747136633163,0.1603121,103820.0,103810.0,0.22717801]
[1747136633378,0.1603121,103820.0,103810.0,0.23681052]
[1747136633575,0.16994396,103820.0,103810.0,0.23681052]
[1747136633791,0.1603121,103820.0,103810.0,0.22717801]
[1747136633992,0.1603121,103820.0,103810.0,0.23681052]
[1747136634194,0.19746933,103820.0,103810.0,0.23681052]
[1747136634408,0.15790379,103820.0,103810.0,0.23681052]
[1747136634618,0.14104902,103820.0,103810.0,0.24644285]
[1747136634831,0.14104893,103820.0,103810.0,0.49136921]
[1747136635093,0.15068042,103820.0,103810.0,0.4913693]
[1747136635303,0.15068042,103820.0,103810.0,0.24644294]
[1747136635509,0.18783755,103820.0,103810.0,0.24644294]
[1747136635724,0.15068042,103820.0,103810.0,0.25607527]
[1747136635970,0.1603121,103820.0,103810.0,0.24644294]
[1747136636776,0.15068042,103820.0,103810.0,0.24644294]
[1747136637018,0.15068042,103820.0,103810.0,0.25607527]
[1747136637214,0.16031201,103820.0,103810.0,0.25607527]
[1747136637435,0.16031201,103820.0,103810.0,0.41682572]
[1747136637584,0.16031201,103820.0,103810.0,0.40719339]
[1747136637821,0.16031201,103820.0,103810.0,0.41682572]
[1747136638076,0.16031201,103820.0,103810.0,0.40719339]
[1747136638304,0.16031201,103820.0,103810.0,0.41682572]
[1747136638830,0.15068042,103820.0,103810.0,0.41682572]
[1747136639029,0.15068042,103820.0,103810.0,0.40719339]
[1747136639242,0.1603121,103820.0,103810.0,0.40719339]
[1747136639464,0.18880072,103820.0,103810.0,0.40719339]
[1747136639689,0.1984324,103820.0,103810.0,0.40719339]
[1747136639841,0.18639241,103820.0,103810.0,0.41682572]
[1747136640046,0.1506804,103820.0,103810.0,0.41682572]
[1747136640652,0.1506804,103820.0,103810.0,0.24644294]
[1747136640895,0.16031208,103820.0,103810.0,0.41682572]
[1747136641702,0.16031208,103820.0,103810.0,0.25607527]
[1747136642018,0.16031208,103820.0,103810.0,0.41682572]
[1747136642753,0.16031208,103820.0,103810.0,0.24644294]
[1747136642925,0.16031208,103820.0,103810.0,0.40719339]
[1747136643131,0.16031208,103820.0,103810.0,0.41682572]
[1747136643345,0.1506804,103820.0,103810.0,0.41682572]
[1747136643962,0.15068031,103820.0,103810.0,0.25607527]
[1747136644122,0.1603118,103820.0,103810.0,0.41682572]
[1747136645616,0.1506804,103820.0,103810.0,0.41682572]
[1747136646656,0.1350804,103820.0,103810.0,0.25607527]
[1747136646890,0.18186921,103820.0,103810.0,0.41682572]
[1747136647087,0.1350804,103820.0,103810.0,0.41682572]
[1747136647291,0.13267211,103820.0,103810.0,0.41682572]
[1747136648404,0.11657211,103820.0,103810.0,0.41682572]
[1747136649490,0.12620388,103820.0,103810.0,0.23681052]
[1747136649709,0.13157211,103820.0,103810.0,0.4071933]
[1747136650126,0.16753775,103820.0,103810.0,0.4071933]
[1747136650318,0.17716934,103820.0,103810.0,0.4071933]
[1747136650524,0.16216934,103820.0,103810.0,0.4071933]
[1747136651349,0.1262037,103820.0,103810.0,0.4071933]
[1747136651935,0.11657211,103820.0,103810.0,0.4071933]
[1747136652537,0.12620379,103820.0,103810.0,0.40719339]
[1747136652755,0.0312,103830.0,103820.0,0.22153614]
[1747136652960,0.02615906,103840.0,103830.0,0.21188433]
[1747136653165,0.15842606,103840.0,103830.0,0.22151499]
[1747136653369,0.15842606,103840.0,103830.0,0.23512651]
[1747136653581,0.17707802,103840.0,103830.0,0.23512651]
[1747136653960,0.18670822,103840.0,103830.0,0.22549585]
[1747136654183,0.18670812,103840.0,103830.0,0.22549585]
[1747136654766,0.00925146,103840.0,103830.0,0.42777677]
[1747136655422,0.00022951,103840.0,103830.0,0.42777677]
[1747136655756,0.00222951,103840.0,103830.0,0.42777677]
[1747136656734,0.01185887,103840.0,103830.0,0.42777677]
[1747136657555,0.00222951,103840.0,103830.0,0.42777677]
[1747136658801,0.01185896,103840.0,103830.0,0.42777677]
[1747136659028,0.00222951,103840.0,103830.0,0.42777677]
[1747136660771,0.01185887,103840.0,103830.0,0.42777677]
[1747136661582,0.01426647,103840.0,103830.0,0.42777677]
[1747136662182,0.02389592,103840.0,103830.0,0.42777677]
[1747136664283,0.01185887,103840.0,103830.0,0.42777677]
[1747136664653,0.01426647,103840.0,103830.0,0.42777677]
[1747136664860,0.04768747,103840.0,103830.0,0.26702632]
[1747136665498,0.04768747,103840.0,103830.0,0.42777677]
[1747136665846,0.02389602,103840.0,103830.0,0.42777677]
[1747136666210,0.01426647,103840.0,103830.0,0.42777677]
[1747136666413,0.02389602,103840.0,103830.0,0.42777677]
[1747136668683,0.02389602,103840.0,103830.0,0.41207677]
[1747136669462,0.02389602,103840.0,103830.0,0.42827677]
[1747136670189,0.01185887,103840.0,103830.0,0.42827677]
[1747136670384,0.02148842,103840.0,103830.0,0.42827677]
[1747136670547,0.01185887,103840.0,103830.0,0.42827677]
[1747136670743,0.02148842,103840.0,103830.0,0.42827677]
[1747136670952,0.00222951,103840.0,103830.0,0.42827677]
[1747136673445,0.01185896,103840.0,103830.0,0.42827677]
[1747136673653,0.01185887,103840.0,103830.0,0.42827677]
[1747136674438,0.02148842,103840.0,103830.0,0.42827677]
[1747136674634,0.03643451,103840.0,103830.0,0.42827677]
[1747136674833,0.04606396,103840.0,103830.0,0.42827677]
[1747136676714,0.02148832,103840.0,103830.0,0.42827677]
[1747136679954,0.03111796,103840.0,103830.0,0.85443677]
[1747136680438,0.03111796,103840.0,103830.0,0.82203677]
[1747136680663,0.02148832,103840.0,103830.0,0.82203677]
[1747136680869,0.03111805,103840.0,103830.0,0.85473677]
[1747136681437,0.02148842,103840.0,103830.0,0.85473677]
[1747136681658,0.01185887,103840.0,103830.0,0.85473677]
[1747136681866,0.02148842,103840.0,103830.0,0.85473677]
[1747136682084,0.01185887,103840.0,103830.0,0.85473677]
[1747136682310,0.02148842,103840.0,103830.0,0.85473677]
[1747136682644,0.02148842,103840.0,103830.0,0.69398632]
[1747136682845,0.05376802,103840.0,103830.0,0.69398632]
[1747136683045,0.05376802,103840.0,103830.0,0.80273682]
[1747136683261,0.05376802,103840.0,103830.0,0.64198637]
[1747136683444,0.05376802,103840.0,103830.0,0.80273682]
[1747136683649,0.03111815,103840.0,103830.0,0.80273682]
[1747136683855,0.03111815,103840.0,103830.0,0.82199832]
[1747136684498,0.03111815,103840.0,103830.0,1.22199832]
[1747136684917,0.03111815,103840.0,103830.0,1.23162907]
[1747136685474,0.01185887,103840.0,103830.0,1.23162907]
[1747136685668,0.02148851,103840.0,103830.0,1.23162907]
[1747136685889,0.00222951,103840.0,103830.0,1.39237952]
[1747136686110,0.00222951,103840.0,103830.0,1.23162907]
[1747136688987,0.02148869,103840.0,103830.0,0.98592907]
[1747136689192,0.0214886,103840.0,103830.0,1.19872907]
[1747136689615,0.01185896,103840.0,103830.0,1.22982907]
[1747136689945,0.00222951,103840.0,103830.0,1.22982907]
[1747136690152,0.00222951,103840.0,103830.0,1.39057952]
[1747136690335,0.00222951,103840.0,103830.0,1.22982907]
[1747136690880,0.01185887,103840.0,103830.0,1.22982907]
[1747136691114,0.00222951,103840.0,103830.0,1.22982907]
[1747136694094,0.00222951,103840.0,103830.0,1.39057952]
[1747136694316,0.01185887,103840.0,103830.0,1.22982907]
[1747136694511,0.00222951,103840.0,103830.0,1.22982907]
[1747136695666,0.01185887,103840.0,103830.0,1.22982907]
[1747136696043,0.00222951,103840.0,103830.0,1.22982907]
[1747136696636,0.00222951,103840.0,103830.0,1.39057952]
[1747136697912,0.00222951,103840.0,103830.0,1.22982907]
[1747136698942,0.01185887,103840.0,103830.0,1.22982907]
[1747136699353,0.00222951,103840.0,103830.0,1.22982907]
[1747136700389,0.01185887,103840.0,103830.0,1.22982907]
[1747136701767,0.00222951,103840.0,103830.0,1.22982907]
[1747136701974,0.00222951,103840.0,103830.0,1.39057952]
[1747136702407,0.00222951,103840.0,103830.0,1.22982907]
[1747136703476,0.00222951,103840.0,103830.0,1.39057952]
[1747136703873,0.00222951,103840.0,103830.0,1.22982907]
[1747136704259,0.00222951,103840.0,103830.0,1.39057952]
[1747136704429,0.00222951,103840.0,103830.0,1.73057952]
[1747136705860,0.01185887,103840.0,103830.0,1.56982907]
[1747136706079,0.00985887,103840.0,103830.0,1.56982907]
[1747136706711,0.00022951,103840.0,103830.0,1.56982907]
[1747136707461,0.00985887,103840.0,103830.0,1.73057952]
[1747136708853,0.00985887,103840.0,103830.0,1.56982907]
[1747136709567,0.01948842,103840.0,103830.0,1.56982907]
[1747136709764,0.01948842,103840.0,103830.0,1.55482907]
[1747136710538,0.01948842,103840.0,103830.0,1.57062907]
[1747136711029,0.00985887,103840.0,103830.0,1.57062907]
[1747136711249,0.01948842,103840.0,103830.0,1.57062907]
[1747136712462,0.00985887,103840.0,103830.0,1.57062907]
[1747136712701,0.01948842,103840.0,103830.0,1.57062907]
[1747136712889,0.01948832,103840.0,103830.0,1.57062907]
[1747136714126,0.02911796,103840.0,103830.0,1.57062907]
[1747136714666,0.01948832,103840.0,103830.0,1.57062907]
[1747136715150,0.00985896,103840.0,103830.0,1.73137952]
[1747136715576,0.00022951,103840.0,103830.0,1.73137952]
[1747136715781,0.00985906,103840.0,103830.0,1.57062907]
[1747136716559,0.00985887,103840.0,103830.0,1.57062907]
[1747136716768,0.01948842,103840.0,103830.0,1.57062907]
[1747136717148,0.04629635,103840.0,103830.0,1.53872907]
[1747136717354,0.04629635,103840.0,103830.0,1.55848857]
[1747136717706,0.04629635,103840.0,103830.0,1.13388857]
[1747136717903,0.05592599,103840.0,103830.0,1.55848857]
[1747136718117,0.04629635,103840.0,103830.0,1.13388857]
[1747136718330,0.04629635,103840.0,103830.0,1.55848857]
[1747136719420,0.05592599,103840.0,103830.0,1.55848857]
[1747136719628,0.0366668,103840.0,103830.0,1.55848857]
[1747136719838,0.04629635,103840.0,103830.0,1.55848857]
[1747136721667,0.0366668,103840.0,103830.0,1.55848857]
[1747136721846,0.04629635,103840.0,103830.0,1.55848857]
[1747136722494,0.06555572,103840.0,103830.0,1.41848857]
[1747136722696,0.02911806,103840.0,103830.0,1.42809608]
[1747136722863,0.01948842,103840.0,103830.0,1.42809608]
[1747136724010,0.02911815,103840.0,103830.0,1.42809608]
[1747136724221,0.01948842,103840.0,103830.0,1.42809608]
[1747136724432,0.02911815,103840.0,103830.0,1.42809608]
[1747136724638,0.01948842,103840.0,103830.0,1.42809608]
[1747136724837,0.02911824,103840.0,103830.0,1.42809608]
[1747136724997,0.02911815,103840.0,103830.0,1.42809608]
[1747136725997,0.02911815,103840.0,103830.0,1.42789627]
[1747136725998,0.25603073,103840.0,103830.0,1.42789627]
[1747136726170,0.25362316,103840.0,103830.0,1.42789627]
[1747136726506,0.06101916,103840.0,103830.0,1.44715768]
[1747136726696,0.06342673,103840.0,103830.0,1.44715768]
[1747136726932,0.26566093,103840.0,103830.0,1.43752665]
[1747136727140,0.09749315,103840.0,103830.0,0.32485713]
[1747136727347,0.31176498,103840.0,103830.0,0.48560758]
[1747136727549,0.11675336,103840.0,103830.0,0.89523805]
[1747136727758,0.10953078,103840.0,103830.0,0.49523805]
[1747136728586,0.09990077,103840.0,103830.0,0.49523805]
[1747136728737,0.10953078,103840.0,103830.0,0.49523805]
[1747136729142,0.09990077,103840.0,103830.0,0.49523805]
[1747136729587,0.10953078,103840.0,103830.0,0.49523805]
[1747136730880,0.09990077,103840.0,103830.0,0.49523805]
[1747136731083,0.10953078,103840.0,103830.0,0.49523805]
[1747136731547,0.09990077,103840.0,103830.0,0.49523805]
[1747136731737,0.10953069,103840.0,103830.0,0.68692971]
[1747136731941,0.09990077,103840.0,103830.0,0.49940971]
[1747136732182,0.10953032,103840.0,103830.0,0.49940971]
[1747136732347,0.30213432,103840.0,103830.0,0.48977924]
[1747136732553,0.1071227,103840.0,103830.0,0.49940971]
[1747136732706,0.10953032,103840.0,103830.0,0.49940971]
[1747136732911,0.11916033,103840.0,103830.0,0.33865926]
[1747136733115,0.11916033,103840.0,103830.0,0.49940971]
[1747136733315,0.11916033,103840.0,103830.0,0.48977924]
[1747136733531,0.0999004,103840.0,103830.0,0.49940971]
[1747136733736,0.10953032,103840.0,103830.0,0.49864971]
[1747136733932,0.0999004,103840.0,103830.0,0.49864971]
[1747136734214,0.10953041,103840.0,103830.0,0.49864971]
[1747136734337,0.10953032,103840.0,103830.0,0.49864971]
[1747136735374,0.0999004,103840.0,103830.0,0.49864971]
[1747136735786,0.10953041,103840.0,103830.0,0.49864971]
[1747136736169,0.10953041,103840.0,103830.0,0.47938858]
[1747136736371,0.10953041,103840.0,103830.0,0.32826879]
[1747136736669,0.0999004,103840.0,103830.0,0.33789907]
[1747136737146,0.11916042,103840.0,103830.0,0.33789907]
[1747136737495,0.12592562,103840.0,103830.0,0.33789917]
[1747136737900,0.32815982,103840.0,103830.0,0.33789917]
[1747136738100,0.3257522,103840.0,103830.0,0.31863785]
[1747136738305,0.3257522,103840.0,103830.0,0.32826851]
[1747136738528,0.31612275,103840.0,103830.0,0.32826851]
[1747136738860,0.31612275,103840.0,103830.0,0.33789908]
[1747136739747,0.12351875,103840.0,103830.0,0.33789908]
[1747136739945,0.11916133,103840.0,103830.0,0.33789908]
[1747136740149,0.31176533,103840.0,103830.0,0.33789908]
[1747136740484,0.30935755,103840.0,103830.0,0.33789908]
[1747136740632,0.10712335,103840.0,103830.0,0.33789908]
[1747136740841,0.10953113,103840.0,103830.0,0.33789852]
[1747136741615,0.31176533,103840.0,103830.0,0.30900682]